[Event "29th CRO-chT Junior 2020"]
[Site "Cakovec"]
[Date "2020.07.15"]
[Round "4.14"]
[White "Matota, Dominik"]
[Black "Dumancic, Simun"]
[Result "1/2-1/2"]
[ECO "B76"]
[WhiteElo "1807"]
[BlackElo "1896"]
[Annotator "NA RC"]
[PlyCount "64"]
[EventDate "2020.07.14"]
[EventType "team-tourn"]
[EventCountry "CRO"]
[SourceTitle "playchess.com"]
[Source "ChessBase"]
[SourceQuality "1"]
[TimeControl "5400+30"]

{[%evp 9,57,11,12,0,0,-7,51,63,65,0,68,9,13,-2,22,31,22,-54,-56,-78,43,-45,18,8,11,4,66,50,58,51,32767,63,32767,45,35,35,28,-16,-8,-33,-22,-82,-70,-69,32767,32767,32767,32767,0,0]} 1. e4 {[%emt 0:00:30]} c5 {[%emt 0:00:30]} 2. Nf3 {[%emt 0:00:00]} Nc6 {[%emt 0:00:30]} 3. d4 {[%emt 0:00:00]} cxd4 {[%emt 0:00:00]} 4. Nxd4 {[%emt 0:00:00]} g6 {[%emt 0:00:00]} 5. Nc3 {[%emt 0:01:00]} Bg7 {[%emt 0:00:30]} 6. Be3 {[%emt 0:00:00]} Nf6 $1 {[%emt 0:00:30]} 7. Qd2 {[%emt 0:00:00]} d6 {[%emt 0:08:30]} ({Black should play} 7... O-O $11) 8. f3 {[%emt 0:00:30]} O-O {[%emt 0:00:30]} 9. Be2 {[%emt 0:01:30]} (9. g4 $16) 9... a6 {[%emt 0:02:30]} (9... d5 $11) 10. Nb3 {[%emt 0:02:30] B76: Sicilian Dragon: Yugoslav Attack, 9 g4 and 9 0-0-0.} Be6 {[%emt 0:04:30]} 11. Nd5 {[%emt 0:02:30]} Bxd5 {[%emt 0:08:30]} 12. exd5 {[%emt 0:00:30]} Ne5 {[%emt 0:00:30]} 13. c4 {[%emt 0:02:30]} (13. f4 $11 Neg4 14. Bd4) 13... Rc8 {[%emt 0:01:30]} 14. Rc1 {[%emt 0:00:30] [#]} Qd7 {[%emt 0:05:30] [#]} ({Better is} 14... b5 $1 $17 {[%mdl 512]} 15. cxb5 Rxc1+ 16. Nxc1 axb5) 15. Nd4 $146 {[%emt 0:08:30]} ({Predecessor:} 15. O-O $14 Rfe8 16. Rfd1 e6 17. dxe6 Qxe6 18. Nd4 Nxf3+ 19. Bxf3 Qxe3+ 20. Qxe3 Rxe3 21. Bxb7 {0-1 (64) Goodfellow,R (1909)-Tombolis,C (1417) Crawley 2016}) 15... e6 {[%emt 0:09:30]} (15... b5 $5 16. b3 bxc4 17. bxc4 Qa4 $15) 16. dxe6 {[%emt 0:06:30]} fxe6 {[%emt 0:00:30]} 17. O-O {[%emt 0:02:30]} Nc6 {[%emt 0:04:30]} (17... d5 $11) 18. Rfd1 {[%emt 0:03:30]} Rfd8 {[%emt 0:01:30]} 19. b4 {[%emt 0:06:30]} Ne7 {[%emt 0:12:30]} 20. Nb3 {[%emt 0:10:30]} Qc7 {[%emt 0:02:30]} 21. b5 {[%emt 0:02:30]} Nf5 {[%emt 0:03:30]} 22. bxa6 {[%emt 0:01:30]} bxa6 {[%emt 0:00:30]} 23. Bf2 {[%emt 0:01:30]} (23. Bf4 $14) 23... Bh6 $1 {[%emt 0:01:30]} 24. Qb2 {[%emt 0:18:30]} Bxc1 {[%emt 0:06:30]} 25. Qxf6 {[%emt 0:00:30]} Bh6 {[%emt 0:00:30]} 26. Qxe6+ {[%emt 0:10:27]} Qf7 {[%emt 0:00:30]} 27. Qxf7+ {[%emt 0:00:00]} Kxf7 {[%emt 0:03:30]} 28. g4 {[%emt 0:00:27]} Ne7 $11 {[%emt 0:08:25]} ({Black should try} 28... Ne3 $17 29. Rd4 Re8) 29. Bb6 {[%emt 0:00:42]} Re8 {[%emt 0:04:55]} 30. Rxd6 {[%emt 0:09:17]} Rc6 {[%emt 0:00:25]} 31. Rxc6 {[%emt 0:01:15]} Nxc6 {[%emt 0:00:02]} 32. Kf2 {[%emt 0:00:13]} Bf4 {[%emt 0:01:59]} 1/2-1/2

[Event "29th CRO-chT Junior 2020"]
[Site "Cakovec"]
[Date "2020.07.15"]
[Round "4.15"]
[White "Sagovac, Kristijan"]
[Black "Borzan, Matej"]
[Result "1-0"]
[ECO "B09"]
[WhiteElo "1839"]
[BlackElo "1746"]
[Annotator "NA RC"]
[PlyCount "47"]
[EventDate "2020.07.14"]
[EventType "team-tourn"]
[EventCountry "CRO"]
[SourceTitle "playchess.com"]
[Source "ChessBase"]
[SourceQuality "1"]
[TimeControl "5400+30"]

{[%evp 8,46,37,25,26,12,65,39,51,-27,-27,-35,-29,-3,115,107,74,117,196,160,164,227,196,262,207,236,222,236,236,230,154,115,437,492,863,32767,1244,189,1314,1387,1308]} 1. e4 {[%emt 0:00:30]} d6 {[%emt 0:00:30]} 2. d4 {[%emt 0:00:00]} Nf6 {[%emt 0:00:00]} 3. Nc3 {[%emt 0:00:00]} g6 {[%emt 0:00:00]} 4. f4 {[%emt 0:00:00]} Bg7 {[%emt 0:00:00]} 5. Nf3 {[%emt 0:01:00]} O-O {[%emt 0:00:00]} 6. Be2 {[%emt 0:00:30]} c6 {[%emt 0:02:30]} 7. h3 {[%emt 0:01:30] B09: Pirc Defence: Austrian Attack.} Nh5 {[%emt 0:03:30]} 8. g4 {[%emt 0:01:30]} (8. Kf2 $14) 8... Ng3 {[%emt 0:00:30]} 9. Rg1 {[%emt 0:01:30]} Nxe2 {[%emt 0:00:30]} 10. Qxe2 {[%emt 0:00:00] [#]} e5 $146 {[%emt 0:01:30]} (10... b5 $15 {stays ahead.}) ({Predecessor:} 10... Qb6 11. e5 Na6 12. b3 c5 13. Nd5 Qd8 14. Nc3 cxd4 15. Nb5 d3 16. Qxd3 dxe5 17. Qxd8 Rxd8 18. fxe5 {0-1 (45) Rosenstein,P (1725)-Fomin,G (2089) San Francisco 2014}) 11. dxe5 {[%emt 0:03:00]} ({Much worse is} 11. fxe5 $6 dxe5 {Much weaker is} 12. dxe5 $6 Qb6 $11) 11... dxe5 {[%emt 0:00:30] [#]} 12. f5 $1 {[%emt 0:02:30]} ({Reject} 12. Nxe5 $6 Qh4+ 13. Qf2 Qxh3 $11) 12... b6 {[%emt 0:02:30]} (12... Qb6 $16) 13. Bg5 {[%emt 0:03:30]} f6 {[%emt 0:03:30]} 14. Bd2 {[%emt 0:01:30]} Ba6 {[%emt 0:00:00]} 15. Qg2 {[%emt 0:04:30]} g5 {[%emt 0:00:00]} 16. h4 {[%emt 0:01:30]} h6 {[%emt 0:00:30]} 17. hxg5 {[%emt 0:00:30]} fxg5 {[%emt 0:00:30]} 18. O-O-O {[%emt 0:00:30]} Qe7 {[%emt 0:00:30]} 19. Qh2 {[%emt 0:01:30]} (19. Rh1 $18 {has better winning chances.}) 19... Qf6 $2 {[%emt 0:03:30]} (19... Rd8 $16) 20. Rh1 {[%emt 0:02:30]} Bc4 {[%emt 0:05:30]} (20... Rd8 $142 21. Qh5 Qf7 22. Qxf7+ Kxf7) 21. Nxg5 {[%emt 0:02:30]} hxg5 {[%emt 0:00:30]} 22. Qh7+ {[%emt 0:00:00]} Kf7 {[%emt 0:00:30]} 23. Qh5+ {[%emt 0:00:00] Double Attack} Ke7 $18 {[%emt 0:00:00]} 24. Bxg5 {[%emt 0:00:30]} 1-0

[Event "29th CRO-chT Junior 2020"]
[Site "Cakovec"]
[Date "2020.07.15"]
[Round "4.16"]
[White "Dankos, Mislav"]
[Black "Martic, Filip"]
[Result "0-1"]
[ECO "B38"]
[WhiteElo "1274"]
[BlackElo "1656"]
[Annotator "NA RC"]
[PlyCount "46"]
[EventDate "2020.07.14"]
[EventType "team-tourn"]
[EventCountry "CRO"]
[SourceTitle "playchess.com"]
[Source "ChessBase"]
[SourceQuality "1"]
[TimeControl "5400+30"]

1. e4 {[%emt 0:00:30]} c5 {[%emt 0:00:30]} 2. Nf3 {[%emt 0:00:00]} g6 {[%emt 0:00:30]} 3. d4 {[%emt 0:00:00]} cxd4 {[%emt 0:00:30]} 4. Nxd4 {[%emt 0:00:30]} Nc6 {[%emt 0:00:30]} 5. c4 {[%emt 0:00:00]} Nf6 {[%emt 0:00:30]} 6. Nc3 {[%emt 0:00:00]} d6 {[%emt 0:00:30]} 7. Be2 {[%emt 0:01:30]} Bg7 {[%emt 0:03:30]} 8. Be3 {[%emt 0:01:30]} Bd7 {[%emt 0:00:30]} 9. O-O {[%emt 0:03:30]} Nxd4 {[%emt 0:00:30]} 10. Bxd4 {[%emt 0:00:30]} Bc6 {[%emt 0:00:30]} 11. f3 {[%emt 0:00:30]} a5 {[%emt 0:00:30]} 12. Na4 {[%emt 0:04:30]} O-O {[%emt 0:02:30]} 13. Nb6 {[%emt 0:00:30]} Rb8 {[%emt 0:00:00]} 14. Nd5 {[%emt 0:00:30]} Bxd5 {[%emt 0:00:00]} 15. cxd5 {[%emt 0:00:00]} Nd7 {[%emt 0:00:30]} 16. Rc1 {[%emt 0:02:00]} Bxd4+ {[%emt 0:06:30]} 17. Qxd4 {[%emt 0:02:30]} Nc5 {[%emt 0:00:30]} 18. b3 {[%emt 0:02:30]} Qd7 {[%emt 0:01:30]} 19. Rc2 {[%emt 0:02:30]} Rfc8 {[%emt 0:05:30]} 20. Rfc1 {[%emt 0:00:30]} b5 {[%emt 0:06:30]} 21. b4 {[%emt 0:02:30]} axb4 {[%emt 0:00:30]} 22. Qxb4 {[%emt 0:00:30]} Qa7 {[%emt 0:00:30]} 23. e5 {[%emt 0:03:30]} Nd3+ {[%emt 0:00:30]} 0-1

[Event "29th CRO-chT Junior 2020"]
[Site "Cakovec"]
[Date "2020.07.15"]
[Round "4.17"]
[White "Muha, Miljenko"]
[Black "Damjanovic, Stjepan"]
[Result "1-0"]
[ECO "E48"]
[WhiteElo "2310"]
[BlackElo "1867"]
[Annotator "RC"]
[PlyCount "59"]
[EventDate "2020.07.14"]
[EventType "team-tourn"]
[EventCountry "CRO"]
[SourceTitle "playchess.com"]
[Source "ChessBase"]
[SourceQuality "1"]
[TimeControl "5400+30"]

1. d4 {[%emt 0:00:30]} Nf6 {[%emt 0:00:30]} 2. c4 {[%emt 0:00:00]} e6 {[%emt 0:00:00]} 3. Nc3 {[%emt 0:00:00]} Bb4 {[%emt 0:00:00]} 4. e3 {[%emt 0:00:00]} O-O {[%emt 0:01:30]} 5. Bd3 {[%emt 0:00:00]} d5 {[%emt 0:00:30]} 6. a3 {[%emt 0:00:30]} Be7 {[%emt 0:01:30]} 7. cxd5 {[%emt 0:03:30]} exd5 {[%emt 0:01:30]} 8. Nge2 {[%emt 0:00:00]} c5 {[%emt 0:00:30]} 9. dxc5 {[%emt 0:01:00]} Bxc5 {[%emt 0:00:30]} 10. Nd4 {[%emt 0:25:30]} Bxd4 {[%emt 0:01:30]} 11. exd4 {[%emt 0:02:30]} Re8+ {[%emt 0:01:30]} 12. Be3 {[%emt 0:02:30]} Ng4 {[%emt 0:01:30]} 13. O-O {[%emt 0:11:30]} Qd6 {[%emt 0:00:30]} 14. g3 {[%emt 0:00:30]} Nxe3 {[%emt 0:02:30]} 15. fxe3 {[%emt 0:00:30]} Rxe3 {[%emt 0:01:30]} 16. Bxh7+ {[%emt 0:17:30]} Kf8 {[%emt 0:07:30]} 17. Qh5 {[%emt 0:03:30]} Be6 {[%emt 0:00:30]} 18. Bg6 {[%emt 0:07:30]} f6 {[%emt 0:02:30]} 19. Rxf6+ {[%emt 0:01:30]} Ke7 {[%emt 0:00:30]} 20. Rff1 {[%emt 0:06:28]} Rxg3+ {[%emt 0:52:30]} 21. hxg3 {[%emt 0:00:37]} Qxg3+ {[%emt 0:00:30]} 22. Kh1 {[%emt 0:00:04]} Nd7 {[%emt 0:00:00]} 23. Rf3 {[%emt 0:01:13]} Qd6 {[%emt 0:00:00]} 24. Re1 {[%emt 0:01:26]} Nf6 {[%emt 0:00:30]} 25. Qe5 {[%emt 0:00:42]} Rh8+ {[%emt 0:01:30]} 26. Kg1 {[%emt 0:00:07]} Qb6 {[%emt 0:04:24]} 27. Nxd5+ {[%emt 0:01:36]} Nxd5 {[%emt 0:00:08]} 28. Qxd5 {[%emt 0:00:19]} Rh6 {[%emt 0:01:30]} 29. Rf7+ {[%emt 0:00:13]} Ke8 {[%emt 0:00:09]} 30. Rxe6+ {[%emt 0:00:07]} 1-0

[Event "29th CRO-chT Junior 2020"]
[Site "Cakovec"]
[Date "2020.07.16"]
[Round "5.7"]
[White "Baric, Marko"]
[Black "Sagovac, Kristijan"]
[Result "1-0"]
[ECO "B51"]
[WhiteElo "1831"]
[BlackElo "1839"]
[Annotator "NA RC"]
[PlyCount "111"]
[EventDate "2020.07.14"]
[EventType "team-tourn"]
[EventCountry "CRO"]
[SourceTitle "playchess.com"]
[Source "ChessBase"]
[SourceQuality "1"]
[TimeControl "5400+30"]

{[%evp 8,110,85,86,80,74,72,66,77,95,97,110,94,92,104,72,95,80,87,93,32767,32767,32767,32767,32767,85,129,117,103,109,439,472,495,510,535,483,466,486,434,518,515,32767,32767,32767,32767,462,458,436,438,32767,32767,32767,32767,32767,32767,32767,32767,32767,32767,32767,32767,32767,32767,32767,540,540,520,32767,32767,520,32767,32767,32767,32767,32767,32767,32767,639,606,711,656,32767,32767,32767,32767,32767,745,32767,32767,32767,32767,32767,32767,32767,32767,32767,32767,32767,32767,32767,32767,32767,32767,12843,6535]} 1. e4 {[%emt 0:04:30]} c5 {[%emt 0:00:30]} 2. Nf3 {[%emt 0:00:00]} Nc6 {[%emt 0:00:00]} 3. Bb5 {[%emt 0:00:00]} e5 {[%emt 0:03:00]} 4. O-O {[%emt 0:04:30]} d6 {[%emt 0:04:30]} 5. c3 {[%emt 0:06:30]} Nf6 {[%emt 0:02:30]} 6. d4 {[%emt 0:02:30] B51: Sicilian: Moscow Variation (3 Bb5+) without 3...Bd7.} cxd4 {[%emt 0:02:30]} 7. cxd4 {[%emt 0:01:30]} Bd7 {[%emt 0:19:30]} 8. dxe5 {[%emt 0:08:30]} Nxe5 {[%emt 0:04:30]} 9. Bxd7+ {[%emt 0:03:30]} Qxd7 {[%emt 0:01:30] [#]} 10. Nc3 $146 {[%emt 0:00:30]} ({Predecessor:} 10. Nxe5 dxe5 11. Qb3 Bd6 12. Nc3 Qc6 13. Re1 O-O 14. Bg5 Bc5 15. Rac1 {0-1 (31) Gonzalez,M (2255)-Perez Moregon,J Havana 1992}) 10... Be7 {[%emt 0:01:30]} 11. Bf4 {[%emt 0:07:30]} Ng6 {[%emt 0:02:30]} 12. Bg3 {[%emt 0:02:30]} O-O {[%emt 0:02:30]} 13. Qb3 {[%emt 0:07:30]} b6 {[%emt 0:12:30]} 14. Rad1 {[%emt 0:02:30]} Qb7 {[%emt 0:00:30]} 15. Rfe1 {[%emt 0:02:30]} Rad8 {[%emt 0:01:30]} 16. Nd4 {[%emt 0:08:30]} Rfe8 {[%emt 0:03:30]} 17. Nf5 {[%emt 0:06:30]} Bf8 {[%emt 0:00:30]} 18. Bxd6 {[%emt 0:03:30]} Nxe4 $2 {[%emt 0:01:30]} (18... Nh4 $16 {is more resistant.}) 19. Bxf8 {[%emt 0:02:30]} Rxd1 {[%emt 0:09:30]} 20. Qxd1 {[%emt 0:01:30]} ({Weaker is} 20. Rxd1 Rxf8 21. Nd5 Kh8 $14) 20... Qc8 {[%emt 0:08:13]} 21. Rxe4 {[%emt 0:08:41]} Rxe4 {[%emt 0:00:55]} 22. Nd6 {[%emt 0:00:13]} ({Much less strong is} 22. Nxe4 Qxf5 23. Bb4 h6 $18) 22... Re1+ {[%emt 0:05:12]} 23. Qxe1 {[%emt 0:00:51]} Qxf8 {[%emt 0:00:00]} 24. Qe8 {[%emt 0:00:00]} Qxe8 {[%emt 0:00:02]} 25. Nxe8 {[%emt 0:00:15]} Ne5 {[%emt 0:00:04]} 26. Nc7 {[%emt 0:01:37]} Kf8 {[%emt 0:00:10]} 27. b3 {[%emt 0:02:18]} Ke7 {[%emt 0:00:53]} 28. N7b5 {[%emt 0:00:33]} Nc6 {[%emt 0:00:11]} 29. Kf1 {[%emt 0:01:12]} Kd7 {[%emt 0:00:04]} 30. Ne4 {[%emt 0:01:08]} f5 {[%emt 0:00:21]} 31. Nd2 {[%emt 0:00:40]} a6 {[%emt 0:00:14]} 32. Nc3 {[%emt 0:00:20]} b5 {[%emt 0:00:54]} 33. Ke2 {[%emt 0:01:35]} Kd6 {[%emt 0:00:25]} 34. Nf3 {[%emt 0:01:19]} Kc5 {[%emt 0:00:17]} 35. Kd3 {[%emt 0:00:58]} a5 {[%emt 0:00:37]} 36. Ng5 {[%emt 0:02:49]} Ne5+ {[%emt 0:01:17]} 37. Kc2 {[%emt 0:01:21]} g6 {[%emt 0:01:20]} 38. h3 {[%emt 0:01:23]} h5 {[%emt 0:00:36]} 39. Ne6+ {[%emt 0:00:12]} Kd6 {[%emt 0:03:07]} 40. Nf4 {[%emt 0:00:42]} b4 {[%emt 0:00:00]} 41. Nce2 {[%emt 0:00:39]} h4 {[%emt 0:01:09]} 42. Nd3 {[%emt 0:00:55]} Nd7 {[%emt 0:02:19]} 43. Kd2 {[%emt 0:00:32]} Nf6 {[%emt 0:00:17]} 44. Nb2 {[%emt 0:00:55]} Ne4+ {[%emt 0:00:30]} 45. Ke3 {[%emt 0:00:07]} Kc5 {[%emt 0:00:33]} 46. Nd3+ {[%emt 0:00:15]} Kd6 {[%emt 0:04:34]} 47. Kd4 {[%emt 0:01:13]} g5 {[%emt 0:01:00]} 48. Kc4 {[%emt 0:00:30]} g4 {[%emt 0:00:21]} 49. Kb5 {[%emt 0:00:53]} Nc3+ {[%emt 0:00:00]} 50. Nxc3 {[%emt 0:00:00]} bxc3 {[%emt 0:00:12]} 51. Kc4 {[%emt 0:00:20]} c2 {[%emt 0:00:30]} 52. Kc3 {[%emt 0:00:34]} gxh3 {[%emt 0:00:03]} 53. gxh3 {[%emt 0:00:05]} c1=Q+ {[%emt 0:00:05]} 54. Nxc1 {[%emt 0:00:00]} Ke5 {[%emt 0:00:03]} 55. Ne2 $18 {[%emt 0:00:44]} Ke4 {[%emt 0:00:07]} 56. Ng1 {[%emt 0:00:16]} 1-0

[Event "29th CRO-chT Junior 2020"]
[Site "Cakovec"]
[Date "2020.07.16"]
[Round "5.8"]
[White "Martic, Filip"]
[Black "Cecic-Sule, Dino"]
[Result "1/2-1/2"]
[ECO "D37"]
[WhiteElo "1656"]
[BlackElo "1695"]
[Annotator "NA RC"]
[PlyCount "110"]
[EventDate "2020.07.14"]
[EventType "team-tourn"]
[EventCountry "CRO"]
[SourceTitle "playchess.com"]
[Source "ChessBase"]
[SourceQuality "1"]
[TimeControl "5400+30"]

1. d4 {[%emt 0:00:30]} d5 {[%emt 0:01:30]} 2. Nf3 {[%emt 0:00:30]} Nf6 {[%emt 0:00:00]} 3. c4 {[%emt 0:00:30]} e6 {[%emt 0:00:00]} 4. Nc3 {[%emt 0:00:30]} Be7 {[%emt 0:00:30]} 5. Bf4 {[%emt 0:00:30]} O-O {[%emt 0:00:30]} 6. e3 {[%emt 0:00:30]} b6 {[%emt 0:00:30]} 7. cxd5 {[%emt 0:00:30]} Nxd5 {[%emt 0:07:30]} 8. Bg3 {[%emt 0:02:30]} Nxc3 {[%emt 0:03:30]} 9. bxc3 {[%emt 0:00:30]} Bb7 {[%emt 0:00:30]} 10. Be2 {[%emt 0:01:30]} Nd7 {[%emt 0:00:30]} 11. O-O {[%emt 0:04:30]} c5 {[%emt 0:01:30]} 12. Rc1 {[%emt 0:05:30]} Nf6 {[%emt 0:04:30]} 13. Qa4 {[%emt 0:08:30]} Ne4 {[%emt 0:11:30]} 14. Rfd1 {[%emt 0:08:30]} Nxg3 {[%emt 0:02:30]} 15. hxg3 {[%emt 0:00:00]} Qc7 {[%emt 0:06:30]} 16. Ne5 {[%emt 0:10:00]} f6 {[%emt 0:06:30]} 17. Nd3 {[%emt 0:01:30]} e5 {[%emt 0:21:30]} 18. dxc5 {[%emt 0:06:30]} bxc5 {[%emt 0:03:30]} 19. Qc4+ {[%emt 0:03:30]} Kh8 {[%emt 0:00:30]} 20. Nb4 {[%emt 0:01:30]} Rad8 {[%emt 0:04:30]} 21. Nd5 {[%emt 0:03:30]} Bxd5 {[%emt 0:00:30]} 22. Rxd5 {[%emt 0:00:30]} Rxd5 {[%emt 0:00:30]} 23. Qxd5 {[%emt 0:00:00]} Rd8 {[%emt 0:00:30]} 24. Qc4 {[%emt 0:00:00]} g6 {[%emt 0:01:30]} 25. Rd1 {[%emt 0:05:30]} Rxd1+ {[%emt 0:00:30]} 26. Bxd1 {[%emt 0:00:30]} Kg7 {[%emt 0:00:30]} 27. Bb3 {[%emt 0:00:00]} Bd6 {[%emt 0:05:32]} 28. Qg8+ {[%emt 0:07:00]} Kh6 {[%emt 0:00:08]} 29. Qe6 {[%emt 0:01:30]} Qe7 {[%emt 0:00:33]} 30. Qh3+ {[%emt 0:00:30]} Kg7 {[%emt 0:00:05]} 31. Qc8 {[%emt 0:00:30]} Qf8 {[%emt 0:00:43]} 32. Qb7+ {[%emt 0:00:30]} Qe7 {[%emt 0:00:06]} 33. Qd5 {[%emt 0:00:30]} f5 {[%emt 0:07:57]} 34. e4 {[%emt 0:02:30]} fxe4 {[%emt 0:03:21]} 35. Qxe4 {[%emt 0:00:30]} Qg5 {[%emt 0:02:45]} 36. Qb7+ {[%emt 0:01:30]} Qe7 {[%emt 0:01:27]} 37. Qc8 {[%emt 0:02:30]} e4 {[%emt 0:00:25]} 38. Qe6 {[%emt 0:02:30]} Qxe6 {[%emt 0:00:21]} 39. Bxe6 {[%emt 0:00:30]} Kf6 {[%emt 0:01:38]} 40. Bb3 {[%emt 0:01:30]} Be5 {[%emt 0:00:16]} 41. c4 {[%emt 0:01:10]} Bc3 {[%emt 0:01:19]} 42. Kf1 {[%emt 0:00:19]} Ke5 {[%emt 0:00:01]} 43. Ke2 {[%emt 0:00:09]} Kd4 {[%emt 0:00:48]} 44. g4 {[%emt 0:00:58]} g5 {[%emt 0:00:21]} 45. Bc2 {[%emt 0:05:21]} h6 {[%emt 0:00:01]} 46. Bb3 {[%emt 0:01:00]} Ba5 {[%emt 0:00:15]} 47. g3 {[%emt 0:00:22]} Bc3 {[%emt 0:01:03]} 48. Bc2 {[%emt 0:00:20]} a5 {[%emt 0:00:45]} 49. Bb3 {[%emt 0:00:34]} Bb2 {[%emt 0:00:05]} 50. Kd2 {[%emt 0:00:48]} Ba3 {[%emt 0:00:10]} 51. Bc2 {[%emt 0:02:59]} Bb4+ {[%emt 0:00:46]} 52. Ke2 {[%emt 0:00:06]} Kxc4 {[%emt 0:01:01]} 53. Bxe4 {[%emt 0:00:02]} Kd4 {[%emt 0:00:00]} 54. Bh7 {[%emt 0:00:25]} c4 {[%emt 0:00:48]} 55. Kd1 {[%emt 0:00:42]} Ke5 {[%emt 0:01:56]} 1/2-1/2

[Event "29th CRO-chT Junior 2020"]
[Site "Cakovec"]
[Date "2020.07.16"]
[Round "5.14"]
[White "Sundac, Ivano"]
[Black "Mijic, Karlo"]
[Result "1-0"]
[ECO "D02"]
[WhiteElo "1408"]
[BlackElo "1729"]
[Annotator "NA RC"]
[PlyCount "89"]
[EventDate "2020.07.14"]
[EventType "team-tourn"]
[EventCountry "CRO"]
[SourceTitle "playchess.com"]
[Source "ChessBase"]
[SourceQuality "1"]
[TimeControl "5400+30"]

1. d4 {[%emt 0:00:30]} Nf6 {[%emt 0:00:30]} 2. Bf4 {[%emt 0:00:00]} d5 {[%emt 0:00:30]} 3. e3 {[%emt 0:00:00]} e6 {[%emt 0:00:00]} 4. Nf3 {[%emt 0:00:00]} Bd6 {[%emt 0:00:00]} 5. Ne5 {[%emt 0:00:00]} O-O {[%emt 0:00:30]} 6. Nd2 {[%emt 0:00:30]} c5 {[%emt 0:00:00]} 7. c3 {[%emt 0:00:00]} Qc7 {[%emt 0:00:00]} 8. Bd3 {[%emt 0:01:00]} Nc6 {[%emt 0:00:30]} 9. Ndf3 {[%emt 0:00:30]} cxd4 {[%emt 0:00:00]} 10. exd4 {[%emt 0:00:30]} Ne4 {[%emt 0:00:00]} 11. Bg3 {[%emt 0:11:30]} f6 {[%emt 0:01:30]} 12. Nxc6 {[%emt 0:01:30]} bxc6 {[%emt 0:00:30]} 13. Qc2 {[%emt 0:00:30]} f5 {[%emt 0:08:30]} 14. Bxd6 {[%emt 0:00:30]} Qxd6 {[%emt 0:00:30]} 15. Ne5 {[%emt 0:01:30]} a5 {[%emt 0:09:30]} 16. f3 {[%emt 0:03:30]} Nf6 {[%emt 0:00:00]} 17. O-O {[%emt 0:06:30]} Ba6 {[%emt 0:00:00]} 18. Rfe1 {[%emt 0:00:30]} c5 {[%emt 0:07:30]} 19. Bxa6 {[%emt 0:01:30]} Rxa6 {[%emt 0:00:30]} 20. Nd3 {[%emt 0:02:30]} cxd4 {[%emt 0:01:30]} 21. cxd4 {[%emt 0:00:30]} Nd7 {[%emt 0:05:30]} 22. Rac1 {[%emt 0:00:30]} Rb8 {[%emt 0:06:30]} 23. Qd2 {[%emt 0:10:30]} Qb6 {[%emt 0:00:30]} 24. Qf4 {[%emt 0:02:30]} Kf7 {[%emt 0:11:30]} 25. Rc7 {[%emt 0:03:30]} Ra7 {[%emt 0:05:30]} 26. Ne5+ {[%emt 0:04:30]} Ke8 {[%emt 0:00:30]} 27. Rc6 {[%emt 0:00:30]} Qb4 {[%emt 0:01:30]} 28. Rxe6+ {[%emt 0:00:30]} Kf8 {[%emt 0:00:30]} 29. Nxd7+ {[%emt 0:01:30]} Rxd7 {[%emt 0:00:30]} 30. Qxf5+ {[%emt 0:00:30]} Rf7 {[%emt 0:00:00]} 31. Qxd5 {[%emt 0:01:30]} g6 {[%emt 0:01:00]} 32. Qe5 {[%emt 0:01:30]} Kg8 {[%emt 0:02:30]} 33. Qxb8+ {[%emt 0:00:30]} Qxb8 {[%emt 0:00:30]} 34. Re8+ {[%emt 0:00:30]} Rf8 {[%emt 0:00:30]} 35. Rxb8 {[%emt 0:00:00]} Rxb8 {[%emt 0:00:00]} 36. b3 {[%emt 0:00:00]} Rb4 {[%emt 0:01:00]} 37. Rd1 {[%emt 0:00:30]} Kf7 {[%emt 0:00:00]} 38. Kf2 {[%emt 0:00:00]} a4 {[%emt 0:00:00]} 39. Rd3 {[%emt 0:00:00]} Ke6 {[%emt 0:00:30]} 40. Ke3 {[%emt 0:00:30]} Kd5 {[%emt 0:00:30]} 41. Rc3 {[%emt 0:00:30]} Rxd4 {[%emt 0:00:30]} 42. Rd3 {[%emt 0:00:00]} Rxd3+ {[%emt 0:00:30]} 43. Kxd3 {[%emt 0:00:00]} a3 {[%emt 0:00:30]} 44. b4 {[%emt 0:00:30]} Ke5 {[%emt 0:01:30]} 45. Kc4 {[%emt 0:00:00]} 1-0